fUSD/lending_fUSD_20250118
["ID","MTS","AMOUNT","RATE_DAILY","PERIOD"]
[349495233,1737220255487,-150.0,0.00022469,2]
[349495234,1737220255497,-150.0,0.00022481,2]
[349495235,1737220255507,-150.0,0.00022495,2]
[349495236,1737220255518,-200.0,0.000225,8]
[349495237,1737220255528,-150.0,0.00022508,2]
[349495238,1737220255538,-150.0,0.0002251,2]
[349495239,1737220255547,-1003.19,0.00022529,2]
[349495240,1737220255558,-578.62,0.00022534,2]
[349495241,1737220255568,-500.0,0.00022534,2]
[349495242,1737220255578,-553.9,0.00022534,2]
[349495243,1737220255588,-2393.34,0.00022534,2]
[349495244,1737220255598,-179.9424718,0.00022553,2]
[349495245,1737220255608,-5466.5657908,0.00022563,2]
[349495246,1737220255618,-150.0,0.00022564,2]
[349495247,1737220255628,-1642.22,0.00022565,2]
[349495248,1737220255638,-500.0,0.00022565,2]
[349495249,1737220255648,-3305.59,0.00022565,2]
[349495250,1737220255658,-500.0,0.00022565,2]
[349495251,1737220255668,-546.9,0.00022565,2]
[349495252,1737220255678,-500.0,0.00022565,2]
[349495253,1737220255690,-500.0,0.00022565,2]
[349495254,1737220255699,-150.0,0.00022567,2]
[349495255,1737220255710,-365.0,0.000226,2]
[349495256,1737220255720,-200.0,0.000226,8]
[349495257,1737220255730,-150.0,0.00022617,2]
[349495258,1737220255740,-150.0,0.00022633,2]
[349495259,1737220255750,-178.93857408,0.00022644,2]
[349495260,1737220255760,-150.0,0.0002265,2]
[349495261,1737220255770,-2412.27123707,0.00022661,2]
[349495262,1737220255780,-150.0,0.00022664,2]
[349495263,1737220255790,-150.0,0.00022672,2]
[349495264,1737220255800,-150.0,0.0002268,2]
[349495265,1737220255810,-150.0,0.00022681,2]
[349495266,1737220255820,-287.90719986,0.00022683,2]
[349495267,1737220255830,-150.0,0.00022694,2]
[349495268,1737220255840,-150.0,0.00022697,2]
[349495269,1737220255851,-200.0,0.000227,8]
[349495270,1737220255861,-704.8281641,0.00022735,2]
[349495271,1737220255870,-150.0,0.00022744,2]
[349495272,1737220255883,-150.0,0.00022748,2]
[349495273,1737220255893,-150.0,0.00022779,2]
[349495274,1737220255903,-201.0,0.0002279,2]
[349495275,1737220255913,-836.0,0.000228,8]
[349495276,1737220255923,-200.0,0.00022802,2]
[349495277,1737220255935,-200.0,0.00022802,2]
[349495278,1737220255944,-200.0,0.00022802,2]
[349495279,1737220255956,-200.0,0.00022802,2]
[349495280,1737220255966,-200.0,0.00022802,2]
[349495281,1737220255976,-200.0,0.00022802,2]
[349495282,1737220255986,-200.0,0.00022802,2]
[349495283,1737220255996,-200.0,0.00022802,2]
[349495284,1737220256006,-200.0,0.00022802,2]
[349495285,1737220256016,-200.0,0.00022802,2]
[349495286,1737220256026,-200.0,0.00022802,2]
[349495287,1737220256036,-200.0,0.00022802,2]
[349495288,1737220256046,-200.0,0.00022802,2]
[349495289,1737220256056,-200.0,0.00022802,2]
[349495290,1737220256065,-200.0,0.00022802,2]
[349495291,1737220256075,-200.0,0.00022802,2]
[349495292,1737220256085,-200.0,0.00022802,2]
[349495293,1737220256095,-200.0,0.00022802,2]
[349495294,1737220256105,-200.0,0.00022802,2]
[349495295,1737220256114,-195.0,0.00022802,2]
[349495296,1737220256124,-201.25252246,0.00022823,10]
[349495297,1737220256135,-150.0,0.00022824,2]
[349495298,1737220256145,-617.96702758,0.00022825,10]
[349495299,1737220256155,-260.03077993,0.00022829,10]
[349495300,1737220256165,-200.0,0.00022831,10]
[349495301,1737220256175,-200.0,0.00022832,10]
[349495302,1737220256187,-260.03077993,0.00022836,10]
[349495303,1737220256326,-150.0,0.00022837,2]
[349495304,1737220256336,-1027.20307415,0.00022838,10]
[349495305,1737220256345,-201.25252246,0.00022842,10]
[349495306,1737220256355,-201.25252246,0.00022843,10]
[349495307,1737220256364,-200.0,0.00022848,10]
[349495308,1737220256373,-201.25252246,0.0002285,10]
[349495309,1737220256383,-200.0,0.0002286,10]
[349495310,1737220256392,-1027.20307415,0.00022871,10]
[349495311,1737220256402,-178.93857408,0.00022872,2]
[349495312,1737220256411,-201.25252246,0.00022874,10]
[349495313,1737220256420,-200.0,0.00022874,10]
[349495314,1737220256429,-201.25252246,0.00022878,10]
[349495315,1737220256439,-201.25252246,0.00022882,10]
[349495316,1737220256448,-150.0,0.00022882,2]
[349495317,1737220256457,-1027.20307415,0.00022886,10]
[349495318,1737220256467,-1027.20307415,0.00022887,10]
[349495319,1737220256477,-260.03077993,0.00022889,10]
[349495320,1737220256486,-260.03077993,0.0002289,10]
[349495321,1737220256495,-200.0,0.00022892,10]
[349495322,1737220256505,-200.0,0.00022898,10]
[349495323,1737220256514,-200.91106217,0.000229,3]
[349495324,1737220256524,-1027.20307415,0.00022904,10]
[349495325,1737220256534,-203.66831973,0.00022904,4]
[349495326,1737220256543,-150.0,0.00022904,4]
[349495327,1737220256554,-172.94046575,0.00022904,4]
[349495328,1737220256563,-150.0,0.00022904,4]
[349495329,1737220256573,-221.73548859,0.00022904,4]
[349495330,1737220256583,-150.0,0.00022904,4]
[349495331,1737220256592,-279.0577435,0.00022904,4]
[349495332,1737220256602,-150.0,0.00022904,4]
[349495333,1737220256611,-617.96702758,0.00022909,10]
[349495334,1737220256621,-200.0,0.00022911,10]
[349495335,1737220256631,-200.0,0.00022912,10]
[349495336,1737220256641,-1027.20307415,0.00022914,10]
[349495337,1737220256650,-260.03077993,0.00022914,10]
[349495338,1737220256660,-500.0,0.00022915,2]
[349495339,1737220256669,-203.66831973,0.0002292,4]
[349495340,1737220256678,-151.0,0.00022924,7]
[349495341,1737220256688,-150.0,0.00022924,2]
[349495342,1737220256698,-504.96,0.00022926,2]
[349495343,1737220256707,-500.0,0.00022926,2]
[349495344,1737220256717,-1642.22,0.00022926,2]
[349495345,1737220256726,-500.0,0.00022926,2]
[349495346,1737220256735,-3305.59,0.00022926,2]
[349495347,1737220256745,-500.0,0.00022926,2]
[349495348,1737220256754,-578.62,0.00022926,2]
[349495349,1737220256764,-578.62,0.00022926,2]
[349495350,1737220256773,-578.62,0.00022926,2]
[349495351,1737220256783,-578.62,0.00022926,2]
[349495352,1737220256792,-578.69825617,0.00022926,2]
[349495353,1737220256802,-546.9,0.00022926,2]
[349495354,1737220256811,-500.0,0.00022926,2]
[349495355,1737220256820,-500.0,0.00022926,2]
[349495356,1737220256830,-500.0,0.00022926,2]
[349495357,1737220256839,-500.0,0.00022926,2]
[349495358,1737220256849,-380.23,0.00022926,2]
[349495359,1737220256858,-553.9,0.00022926,2]
[349495360,1737220256867,-553.9,0.00022926,2]
[349495361,1737220256880,-553.9,0.00022926,2]
[349495362,1737220256889,-553.9,0.00022926,2]
[349495363,1737220256899,-554.05997101,0.00022926,2]
[349495364,1737220256908,-2393.34,0.00022926,2]
[349495365,1737220256919,-2393.34,0.00022926,2]
[349495366,1737220256929,-2393.34,0.00022926,2]
[349495367,1737220256939,-2393.34,0.00022926,2]
[349495368,1737220256949,-2393.3614733,0.00022926,2]
[349495369,1737220256960,-151.0,0.00022927,7]
[349495370,1737220256970,-151.0,0.00022927,7]
[349495371,1737220256980,-151.0,0.00022927,7]
[349495372,1737220256989,-151.0,0.00022927,7]
[349495373,1737220256998,-151.0,0.00022927,7]
[349495374,1737220257008,-151.0,0.00022927,7]
[349495375,1737220257017,-151.0,0.00022927,7]
[349495376,1737220257027,-151.0,0.00022927,7]
[349495377,1737220257036,-245.635694,0.00022927,7]
[349495378,1737220257046,-245.635694,0.00022927,7]
[349495379,1737220257056,-151.0,0.00022927,7]
[349495380,1737220257065,-151.0,0.00022927,7]
[349495381,1737220257074,-214515.16516105,0.00022927,2]
[349495382,1737220257084,-617.96702758,0.00022928,10]
[349495383,1737220257094,-150.0,0.00022928,4]
[349495384,1737220257103,-150.0,0.00022928,2]
[349495385,1737220257112,-260.03077993,0.00022932,10]
[349495386,1737220257122,-1027.20307415,0.00022935,10]
[349495387,1737220257131,-203.66831973,0.00022936,4]
[349495388,1737220257141,-150.0,0.00022938,2]
[349495389,1737220257150,-1027.20307415,0.00022939,10]
[349495390,1737220257160,-2000.0,0.0002294,2]
[349495391,1737220257169,-200.0,0.0002294,2]
[349495392,1737220257179,-200.0,0.0002294,2]
[349495393,1737220257191,-200.0,0.00022945,10]
[349495394,1737220257200,-260.03077993,0.00022945,10]
[349495395,1737220257212,-150.0,0.00022947,4]
[349495396,1737220257221,-200.0,0.0002295,10]
[349495397,1737220257231,-150.0,0.00022952,4]
[349495398,1737220257240,-203.66831973,0.00022952,4]
[349495399,1737220257250,-200.0,0.00022954,10]
[349495400,1737220257259,-617.96702758,0.00022958,10]
[349495401,1737220257268,-151.0,0.00022959,7]
[349495402,1737220257278,-151.0,0.00022959,7]
[349495403,1737220257288,-151.0,0.00022959,7]
[349495404,1737220257297,-617.96702758,0.00022959,10]
[349495405,1737220257306,-150.0,0.0002296,2]
[349495406,1737220257315,-200.0,0.00022965,10]
[349495407,1737220257325,-201.25252246,0.00022967,10]
[349495408,1737220257335,-203.66831973,0.00022969,4]
[349495409,1737220257344,-150.0,0.00022974,2]
[349495410,1737220257354,-617.96702758,0.00022974,10]
[349495411,1737220257363,-617.96702758,0.00022975,10]
[349495412,1737220257372,-200.0,0.00022976,10]
[349495413,1737220257382,-150.0,0.00022976,4]
[349495414,1737220257391,-203.66831973,0.00022985,4]
[349495415,1737220257401,-200.0,0.00022986,10]
[349495416,1737220257410,-151.0,0.00022989,7]
[349495417,1737220257419,-297.750049,0.00022989,7]
[349495418,1737220257428,-151.0,0.00022989,7]
[349495419,1737220257440,-150.0,0.00022989,2]
[349495420,1737220257449,-87611.936393,0.0002299,2]
[349495421,1737220257458,-151.0,0.0002299,7]
[349495422,1737220257467,-150.0,0.0002299,4]
[349495423,1737220257476,-200.0,0.00022996,10]
[349495424,1737220257486,-260.03077993,0.00022997,10]
[349495425,1737220257495,-504.96,0.00022998,2]
[349495426,1737220257504,-500.0,0.00022998,2]
[349495427,1737220257514,-1000.0,0.00022999,2]
[349495428,1737220257524,-1642.22,0.00022999,2]
[349495429,1737220257533,-500.0,0.00022999,2]
[349495430,1737220257543,-3305.59,0.00022999,2]
[349495431,1737220257553,-500.0,0.00022999,2]
[349495432,1737220257563,-546.9,0.00022999,2]
[349495433,1737220257572,-588.32554085,0.00022999,2]
[349495434,1737220257582,-500.0,0.00022999,2]
[349495435,1737220257591,-150.0,0.00022999,4]
[349495436,1737220257601,-617.96702758,0.00023,10]
[349495437,1737220257610,-150.0,0.00023,2]
[349495438,1737220257620,-204.0,0.00023,2]
[349495439,1737220257629,-2000.0,0.00023,2]
[349495440,1737220257639,-1350.0,0.00023,10]
[349495441,1737220257648,-1000.0,0.00023,10]
[349495442,1737220257657,-5790.15939982,0.00023,3]
[349495443,1737220257666,-2110.0,0.00023,2]
[349495444,1737220257675,-59747.00300827,0.00023,2]
[349495445,1737220257685,-2000.0,0.00023,2]
[349495446,1737220257695,-2000.0,0.00023,2]
[349495447,1737220257704,-2000.0,0.00023,2]
[349495448,1737220257713,-2000.0,0.00023,2]
[349495449,1737220257722,-2000.0,0.00023,2]
[349495450,1737220257731,-2000.0,0.00023,2]
[349495451,1737220257740,-2000.0,0.00023,2]
[349495452,1737220257749,-2000.0,0.00023,2]
[349495453,1737220257759,-750.0,0.00023,2]
[349495454,1737220257768,-320.35304987,0.00023,2]
[349495455,1737220257777,-150.0,0.00023,2]
[349495456,1737220257786,-150.0,0.00023,2]
[349495457,1737220257796,-150.0,0.00023,2]
[349495458,1737220257805,-150.0,0.00023,2]
[349495459,1737220257815,-12937.8729234,0.00023,2]
[349495460,1737220257824,-1867.73390434,0.00023,2]
[349495461,1737220257834,-837.15580306,0.00023,2]
[349495462,1737220257843,-1288.25956317,0.00023,2]
[349495463,1737220257852,-200.0,0.00023,2]
[349495464,1737220257861,-178.0,0.00023,2]
[349495465,1737220257871,-6171.31,0.00023,2]
[349495466,1737220257884,-1615.41,0.00023,2]
[349495467,1737220257893,-152.0,0.00023,4]
[349495468,1737220257902,-203.66831973,0.00023001,4]
[349495469,1737220257912,-500.0,0.00023012,2]
[349495470,1737220257922,-150.0,0.00023014,2]
[349495471,1737220257931,-203.66831973,0.00023017,4]
[349495472,1737220257940,-150.0,0.00023018,2]
[349495473,1737220257950,-150.0,0.00023018,4]
[349495474,1737220257960,-500.0,0.00023022,2]
[349495475,1737220257969,-504.96,0.00023023,2]
[349495476,1737220257978,-222.614621,0.00023023,2]
[349495477,1737220257987,-150.0,0.00023023,4]
[349495478,1737220257996,-150.0,0.00023025,2]
[349495479,1737220258005,-203.66831973,0.00023033,4]
[349495480,1737220258015,-150.0,0.00023034,4]
[349495481,1737220258025,-150.0,0.00023034,2]
[349495482,1737220258034,-150.0,0.00023047,4]
[349495483,1737220258044,-150.0,0.00023049,2]
[349495484,1737220258053,-203.66831973,0.00023049,4]
[349495485,1737220258063,-1000.0,0.0002305,10]
[349495486,1737220258072,-203.66831973,0.00023065,4]
[349495487,1737220258082,-150.0,0.00023071,4]
[349495488,1737220258091,-150.0,0.00023071,2]
[349495489,1737220258101,-150.0,0.00023077,4]
[349495490,1737220258110,-203.66831973,0.00023081,4]
[349495491,1737220258119,-1000.0,0.00023083,2]
[349495492,1737220258128,-901.9998,0.00023083,2]
[349495493,1737220258137,-2000.0,0.00023083,2]
[349495494,1737220258147,-150.0,0.00023088,2]
[349495495,1737220258157,-150.0,0.00023091,2]
[349495496,1737220258166,-150.0,0.00023095,4]
[349495497,1737220258175,-203.66831973,0.00023098,4]
[349495498,1737220258185,-283.14590323,0.000231,2]
[349495499,1737220258194,-1079.39031188,0.000231,2]
[349495500,1737220258203,-159.0,0.000231,8]
[349495501,1737220258212,-5466.5657908,0.000231,2]
[349495502,1737220258221,-178.93857408,0.000231,2]
[349495503,1737220258230,-150.0,0.00023105,2]
[349495504,1737220258239,-203.66831973,0.00023114,4]
[349495505,1737220258249,-179.9424718,0.00023117,2]
[349495506,1737220258258,-150.0,0.00023118,4]
[349495507,1737220258267,-150.0,0.0002312,4]
[349495508,1737220258276,-151.0,0.00023123,7]
[349495509,1737220258286,-500.0,0.00023123,2]
[349495510,1737220258295,-500.0,0.00023123,2]
[349495511,1737220258304,-500.0,0.00023123,2]
[349495512,1737220258313,-234.45712602,0.00023123,2]
[349495513,1737220258322,-287.595228,0.00023124,7]
[349495514,1737220258331,-151.0,0.00023124,7]
[349495515,1737220258340,-151.0,0.00023124,7]
[349495516,1737220258349,-151.0,0.00023124,7]
[349495517,1737220258358,-179.305898,0.00023124,7]
[349495518,1737220258367,-504.96,0.00023126,2]
[349495519,1737220258377,-504.96,0.00023126,2]
[349495520,1737220258386,-504.96,0.00023126,2]
[349495521,1737220258395,-504.96,0.00023126,2]
[349495522,1737220258404,-505.12436686,0.00023126,2]
[349495523,1737220258413,-151.0,0.00023127,7]
[349495524,1737220258423,-188.47431,0.00023127,7]
[349495525,1737220258433,-246.52335,0.00023127,7]
[349495526,1737220258443,-275.27519,0.00023127,7]
[349495527,1737220258453,-151.0,0.00023127,7]
[349495528,1737220258465,-151.404109,0.00023127,7]
[349495529,1737220258475,-168.188848,0.00023127,7]
[349495530,1737220258484,-253.473486,0.00023127,7]
[349495531,1737220258495,-1642.22,0.00023127,2]
[349495532,1737220258504,-1642.22,0.00023127,2]
[349495533,1737220258513,-1642.22,0.00023127,2]
[349495534,1737220258523,-1642.22,0.00023127,2]
[349495535,1737220258532,-1642.22,0.00023127,2]
[349495536,1737220258541,-1642.25499548,0.00023127,2]
[349495537,1737220258551,-248.714236,0.00023127,7]
[349495538,1737220258561,-151.0,0.00023127,7]
[349495539,1737220258570,-151.0,0.00023127,7]
[349495540,1737220258580,-151.0,0.00023127,7]
[349495541,1737220258589,-151.0,0.00023127,7]
[349495542,1737220258598,-151.0,0.00023127,7]
[349495543,1737220258608,-151.0,0.00023127,7]
[349495544,1737220258617,-162.793451,0.00023127,7]
[349495545,1737220258627,-500.0,0.00023127,2]
[349495546,1737220258636,-500.0,0.00023127,2]
[349495547,1737220258645,-447.78141108,0.00023127,2]
[349495548,1737220258655,-3305.59,0.00023127,2]
[349495549,1737220258663,-3305.59,0.00023127,2]
[349495550,1737220258672,-3305.59,0.00023127,2]
[349495551,1737220258684,-3305.59,0.00023127,2]
[349495552,1737220258694,-3305.59,0.00023127,2]
[349495553,1737220258703,-3305.74854486,0.00023127,2]
[349495554,1737220258713,-500.0,0.00023127,2]
[349495555,1737220258722,-500.0,0.00023127,2]
[349495556,1737220258731,-500.0,0.00023127,2]
[349495557,1737220258740,-183.70402615,0.00023127,2]
[349495558,1737220258750,-546.9,0.00023127,2]
[349495559,1737220258759,-546.9,0.00023127,2]
[349495560,1737220258769,-546.9,0.00023127,2]
[349495561,1737220258778,-546.9,0.00023127,2]
[349495562,1737220258788,-546.9,0.00023127,2]
[349495563,1737220258797,-546.9,0.00023127,2]
[349495564,1737220258806,-187.728024,0.00023127,7]
[349495565,1737220258815,-500.0,0.00023127,2]
[349495566,1737220258825,-500.0,0.00023127,2]
[349495567,1737220258834,-500.0,0.00023127,2]
[349495568,1737220258844,-500.0,0.00023127,2]
[349495569,1737220258853,-264.83,0.00023127,2]
[349495570,1737220258862,-245.635694,0.00023127,7]
[349495571,1737220258872,-245.635694,0.00023127,7]
[349495572,1737220258884,-245.635694,0.00023127,7]
[349495573,1737220258893,-245.635694,0.00023127,7]
[349495574,1737220258902,-245.635694,0.00023127,7]
[349495575,1737220258912,-245.635694,0.00023127,7]
[349495576,1737220258922,-151.0,0.00023127,7]
[349495577,1737220258934,-151.0,0.00023127,7]
[349495578,1737220258943,-151.0,0.00023127,7]
[349495579,1737220258954,-151.0,0.00023127,7]
[349495580,1737220258964,-151.0,0.00023127,7]
[349495581,1737220258973,-151.0,0.00023127,7]
[349495582,1737220258982,-616.493928,0.00023127,30]
[349495583,1737220258991,-1000.0,0.00023127,30]
[349495584,1737220259001,-1000.0,0.00023127,60]
[349495585,1737220259010,-1000.0,0.00023127,60]
[349495586,1737220259019,-1000.0,0.00023127,30]
[349495587,1737220259028,-202.9,0.00023127,30]
[349495588,1737220259038,-1000.0,0.00023127,120]
[349495589,1737220259048,-1000.0,0.00023127,30]
[349495590,1737220259057,-1000.0,0.00023127,30]
[349495591,1737220259067,-1015.38,0.00023127,60]
[349495592,1737220259076,-1925.01925367,0.00023127,60]
[349495593,1737220259085,-150.0,0.00023127,2]
[349495594,1737220259094,-30080.73653823,0.00023127,4]
[349495595,1737220259103,-1299.15227311,0.00023127,90]
[349495596,1737220259113,-553.98643853,0.00023127,5]
[349495597,1737220259122,-199427.57465685,0.00023127,2]
[349495598,1737220259131,-1468.92340779,0.00023127,10]
[349495599,1737220259141,-999.999992,0.00023127,120]
[349495600,1737220259150,-503.49237548,0.00023127,30]
[349495601,1737220259159,-376.2978427,0.00023127,30]
[349495602,1737220259168,-863.19931198,0.00023127,30]
[349495603,1737220259177,-1000.0,0.00023127,30]
[349495604,1737220259191,-150.81520243,0.00023127,3]
[349495605,1737220259200,-1210.0,0.00023127,2]
[349495606,1737220259209,-927.51518016,0.00023127,120]
[349495607,1737220259218,-236.23157486,0.00023127,120]
[349495608,1737220259228,-694.99229518,0.00023127,2]
[349495609,1737220259237,-2730.24947046,0.00023127,120]
[349495610,1737220259367,-1981.37859739,0.00023127,30]
[349495611,1737220259376,-728.414124,0.00023127,30]
[349495612,1737220259386,-2032.90287298,0.00023127,120]
[349495613,1737220259395,-1957.58280176,0.00023127,5]
[349495614,1737220259404,-694.23170532,0.00023127,10]
[349495615,1737220259414,-1202.81165673,0.00023127,30]
[349495616,1737220259423,-344.17309104,0.00023127,2]
[349495617,1737220259435,-463.16046842,0.00023127,30]
[349495618,1737220259444,-186.33035792,0.00023127,7]
[349495619,1737220259453,-610.05523237,0.00023127,6]
[349495620,1737220259463,-2330.30473421,0.00023127,120]
[349495621,1737220259472,-1008.62108261,0.00023127,15]
[349495622,1737220259481,-942.03743614,0.00023127,20]
[349495623,1737220259490,-744.26069399,0.00023127,10]
[349495624,1737220259499,-752.61102654,0.00023127,2]
[349495625,1737220259508,-261.29996056,0.00023127,30]
[349495626,1737220259518,-1502.71999072,0.00023127,2]
[349495627,1737220259527,-1017.35628399,0.00023127,2]
[349495628,1737220259536,-36183.20371682,0.00023127,30]
[349495629,1737220259545,-5122.58536073,0.00023127,2]
[349495630,1737220259555,-700.37481574,0.00023127,120]
[349495631,1737220259563,-169.07033738,0.00023127,2]
[349495632,1737220259573,-522.24723754,0.00023127,7]
[349495633,1737220259582,-2426.14482959,0.00023127,2]
[349495634,1737220259592,-845.51297313,0.00023127,30]
[349495635,1737220259601,-300.0,0.00023127,15]
[349495636,1737220259612,-213047.43253322,0.00023127,2]
[349495637,1737220259622,-853.5998955,0.00023127,30]
[349495638,1737220259631,-962.78120817,0.00023127,5]
[349495639,1737220259640,-5014.05050801,0.00023127,2]
[349495640,1737220259650,-246.2180419,0.00023127,2]
[349495641,1737220259659,-162.4569795,0.00023127,2]
[349495642,1737220259668,-860.33739018,0.00023127,5]
[349495643,1737220259677,-1246.95844198,0.00023127,2]
[349495644,1737220259688,-919.44753859,0.00023127,30]
[349495645,1737220259698,-212.20006503,0.00023127,120]
[349495646,1737220259707,-326.19563448,0.00023127,60]
[349495647,1737220259716,-7628.97422999,0.00023127,2]
[349495648,1737220259725,-205.79144719,0.00023127,30]
[349495649,1737220259734,-949.87157798,0.00023127,30]
[349495650,1737220259744,-230.37429374,0.00023127,120]
[349495651,1737220259753,-1219.50754785,0.00023127,15]
[349495652,1737220259762,-2205.47570639,0.00023127,10]
[349495653,1737220259772,-11003.79163932,0.00023127,2]
[349495654,1737220259781,-226.40747037,0.00023127,120]
[349495655,1737220259790,-1029.26839597,0.00023127,2]
[349495656,1737220259799,-1606.79233309,0.00023127,120]
[349495657,1737220259808,-583.56867897,0.00023127,5]
[349495658,1737220259818,-4045.57609743,0.00023127,2]
[349495659,1737220259827,-587.83781438,0.00023127,2]
[349495660,1737220259836,-193.97093231,0.00023127,120]
[349495661,1737220259846,-347.17506147,0.00023127,30]
[349495662,1737220259855,-9130.99176563,0.00023127,2]
[349495663,1737220259864,-1296.27036243,0.00023127,2]
[349495664,1737220259874,-2235.56857987,0.00023127,10]
[349495665,1737220259886,-1000.0,0.00023127,10]
[349495666,1737220259895,-3380.97655672,0.00023127,2]
[349495667,1737220259904,-7686.85920849,0.00023127,2]
[349495668,1737220259913,-3819.06591887,0.00023127,7]
[349495669,1737220259923,-12687.48820282,0.00023127,2]
[349495670,1737220259933,-1899.39438234,0.00023127,2]
[349495671,1737220259943,-181.95604547,0.00023127,2]
[349495672,1737220259953,-463.9235534,0.00023127,3]
[349495673,1737220259962,-643.0,0.00023127,2]
[349495674,1737220259971,-5252.21202476,0.00023127,4]
[349495675,1737220259980,-959.17604989,0.00023127,2]
[349495676,1737220259989,-9532.99690564,0.00023127,2]
[349495677,1737220259998,-249.13678422,0.00023127,120]
[349495678,1737220260007,-500.0,0.00023127,10]
[349495679,1737220260016,-25058.77486302,0.00023127,2]
[349495680,1737220260025,-566.52341574,0.00023127,2]
[349495681,1737220260035,-1816.62344495,0.00023127,2]
[349495682,1737220260046,-3207.7433734,0.00023127,2]
[349495683,1737220260055,-152.69180591,0.00023127,2]
[349495684,1737220260065,-173.45163078,0.00023127,2]
[349495685,1737220260075,-514.05702507,0.00023127,120]
[349495686,1737220260084,-7008.078597,0.00023127,2]
[349495687,1737220260093,-50961.33207499,0.00023127,2]
[349495688,1737220260102,-550.0,0.00023127,2]
[349495689,1737220260111,-1450.31356542,0.00023127,2]
[349495690,1737220260120,-996.96013229,0.00023127,2]
[349495691,1737220260129,-1019.42667561,0.00023127,7]
[349495692,1737220260138,-944.13123163,0.00023127,2]
[349495693,1737220260147,-10587.44170332,0.00023127,2]
[349495694,1737220260156,-133332.82352544,0.00023127,2]
[349495695,1737220260306,-3834.60462693,0.00023127,2]
[349495696,1737220260317,-361.91229361,0.00023127,2]
[349495697,1737220260328,-477.93743234,0.00023127,2]
[349495698,1737220260339,-6685.92315262,0.00023127,2]
[349495699,1737220260368,-12406.01327768,0.00023127,2]
[349495700,1737220260379,-4351.1170495,0.00023127,2]
[349495701,1737220260390,-582.37263847,0.00023127,2]
[349495702,1737220260401,-2080.88266062,0.00023127,2]
[349495703,1737220260546,-38423.09535169,0.00021496,2]
[349495704,1737220260560,-1728.96588025,0.00021496,2]
[349495705,1737220260572,-815.77709999,0.00021496,2]
[349495706,1737220260583,-473.474629,0.00021496,2]
[349495723,1737220789469,229.86,0.00010137,2]
[349495731,1737221108302,259593.58,0.00012,2]
[349495732,1737221108329,1000000.0,0.00012,2]
[349495733,1737221108356,672647.94836578,0.00012,2]
[349495735,1737221199619,274.0,0.00023,120]
[349495740,1737221282431,327352.05163422,0.0001,2]
[349495741,1737221282457,388197.51166155,0.0001,2]
[349495766,1737221431514,-550.0,0.00015,2]
[349495767,1737221431523,-4287.90357461,0.00016281,7]
[349495768,1737221431683,-8519.34848858,0.00016281,7]
[349495769,1737221431695,-10051.67517314,0.00016281,7]
[349495770,1737221431745,-73362.7860806,0.00016281,7]
[349495771,1737221431858,-6505.60278513,0.00016281,7]
[349495905,1737221437473,-299.65179474,0.00016281,7]
[349495906,1737221437485,-40750.444,0.00016281,7]
[349495907,1737221437497,-2308.9010082,0.00016281,7]
[349495908,1737221437506,-688.57930177,0.00016713,2]
[349495909,1737221437516,-229.86,0.00016813,2]
[349495910,1737221437525,-255.19584328,0.000169,2]
[349495911,1737221437535,-600.0,0.00017,2]
[349495912,1737221437545,-255.19584327,0.00017141,2]
[349495913,1737221437554,-255.19584327,0.00017383,2]
[349495914,1737221437564,-255.19584327,0.00017624,2]
[349495915,1737221437573,-255.19584327,0.00017866,2]
[349495916,1737221437583,-255.19584327,0.00018107,2]
[349495917,1737221437596,-1586.32,0.00018231,2]